[Event "Titled Tuesday Blitz June 13 Late 2023"]
[White "Kielinkei"]
[Black "Perez, Maximiliano"]
[BlackFideId "117234"]
[WhiteElo "2457"]
[BlackElo "2334"]
[Result "0-1"]
[Round "8"]
[TimeControl "180+2"]
[Date "2023.06.13"]
[WhiteClock "0:00:04"]
[BlackClock "0:00:34"]
[Board "78"]

1. d4 {[%clk 0:03:00]}  Nf6 {[%clk 0:02:59]} 2. Bg5 {[%clk 0:03:00]}  c5 {[%clk 0:02:57]} 3. d5 {[%clk 0:02:56]}  Qb6 {[%clk 0:02:55]} 4. Nc3 {[%clk 0:02:50]}  Qxb2 {[%clk 0:02:46]} 5. Bd2 {[%clk 0:02:50]}  Qb6 {[%clk 0:02:46]} 6. e4 {[%clk 0:02:48]}  d6 {[%clk 0:02:47]} 7. Rb1 {[%clk 0:02:46]}  Qd8 {[%clk 0:02:46]} 8. Nf3 {[%clk 0:02:35]}  g6 {[%clk 0:02:46]} 9. Bc4 {[%clk 0:02:23]}  Bg7 {[%clk 0:02:46]} 10. O-O {[%clk 0:02:23]}  O-O {[%clk 0:02:44]} 11. a4 {[%clk 0:02:15]}  Nbd7 {[%clk 0:02:37]} 12. h3 {[%clk 0:02:12]}  Ne8 {[%clk 0:02:35]} 13. Qe2 {[%clk 0:02:01]}  Nc7 {[%clk 0:02:33]} 14. Rfe1 {[%clk 0:01:50]}  a6 {[%clk 0:02:33]} 15. a5 {[%clk 0:01:45]}  Ne5 {[%clk 0:02:31]} 16. Nxe5 {[%clk 0:01:43]}  Bxe5 {[%clk 0:02:32]} 17. Na4 {[%clk 0:01:40]}  Rb8 {[%clk 0:02:20]} 18. Nb6 {[%clk 0:01:39]}  Bd7 {[%clk 0:02:17]} 19. Qd3 {[%clk 0:01:34]}  Bb5 {[%clk 0:02:14]} 20. f4 {[%clk 0:01:28]}  Bd4+ {[%clk 0:02:09]} 21. Kh2 {[%clk 0:01:25]}  Bxc4 {[%clk 0:02:08]} 22. Nxc4 {[%clk 0:01:25]}  Bg7 {[%clk 0:02:02]} 23. Bc3 {[%clk 0:01:22]}  Nb5 {[%clk 0:01:56]} 24. Bxg7 {[%clk 0:01:21]}  Kxg7 {[%clk 0:01:57]} 25. e5 {[%clk 0:01:16]}  dxe5 {[%clk 0:01:57]} 26. fxe5 {[%clk 0:01:15]}  Qd7 {[%clk 0:01:56]} 27. Rbd1 {[%clk 0:01:11]}  Rbd8 {[%clk 0:01:52]} 28. Nb6 {[%clk 0:01:10]}  Qf5 {[%clk 0:01:52]} 29. Qxf5 {[%clk 0:01:04]}  gxf5 {[%clk 0:01:53]} 30. Rf1 {[%clk 0:01:04]}  e6 {[%clk 0:01:52]} 31. c4 {[%clk 0:00:56]}  Nd4 {[%clk 0:01:49]} 32. Rf4 {[%clk 0:00:53]}  f6 {[%clk 0:01:40]} 33. exf6+ {[%clk 0:00:47]}  Kxf6 {[%clk 0:01:41]} 34. Rb1 {[%clk 0:00:33]}  e5 {[%clk 0:01:19]} 35. Rf2 {[%clk 0:00:32]}  e4 {[%clk 0:01:12]} 36. Na4 {[%clk 0:00:31]}  e3 {[%clk 0:01:13]} 37. Rfb2 {[%clk 0:00:28]}  Rfe8 {[%clk 0:01:05]} 38. Nxc5 {[%clk 0:00:27]}  e2 {[%clk 0:01:05]} 39. Re1 {[%clk 0:00:17]}  Re3 {[%clk 0:01:01]} 40. Rxb7 {[%clk 0:00:11]}  f4 {[%clk 0:01:00]} 41. Rb2 {[%clk 0:00:07]}  f3 {[%clk 0:00:59]} 42. Kg1 {[%clk 0:00:07]}  fxg2 {[%clk 0:00:48]} 43. Kxg2 {[%clk 0:00:07]}  Rg8+ {[%clk 0:00:48]} 44. Kh2 {[%clk 0:00:05]}  Nf3+ {[%clk 0:00:48]} 45. Kh1 {[%clk 0:00:06]}  Nxe1 {[%clk 0:00:49]} 46. Nd7+ {[%clk 0:00:05]}  Ke7 {[%clk 0:00:34]} 47. Rb7 {[%clk 0:00:04]} 0-1


[Site "https://www.chess.com"]

[Event "Titled Tuesday Blitz June 13 Late 2023"]
[White "Pinheiro, Iung Alicio de O."]
[Black "GAO"]
[WhiteFideId "2104350"]
[WhiteElo "2283"]
[BlackElo "2390"]
[Result "0-1"]
[Round "8"]
[TimeControl "180+2"]
[Date "2023.06.13"]
[WhiteClock "0:00:08"]
[BlackClock "0:00:09"]
[Board "82"]

1. d4 {[%clk 0:03:00]}  Nf6 {[%clk 0:02:59]} 2. c4 {[%clk 0:02:59]}  e6 {[%clk 0:02:59]} 3. g3 {[%clk 0:02:58]}  d5 {[%clk 0:02:58]} 4. Nf3 {[%clk 0:02:55]}  Bb4+ {[%clk 0:02:48]} 5. Nbd2 {[%clk 0:02:50]}  O-O {[%clk 0:02:47]} 6. Bg2 {[%clk 0:02:47]}  dxc4 {[%clk 0:02:46]} 7. Qc2 {[%clk 0:02:47]}  b5 {[%clk 0:02:45]} 8. a4 {[%clk 0:02:38]}  Bb7 {[%clk 0:02:24]} 9. axb5 {[%clk 0:02:35]}  Qd5 {[%clk 0:01:58]} 10. O-O {[%clk 0:02:15]}  Qxb5 {[%clk 0:01:57]} 11. Nxc4 {[%clk 0:01:51]}  Be4 {[%clk 0:01:52]} 12. Qb3 {[%clk 0:01:50]}  Bd5 {[%clk 0:01:52]} 13. Na3 {[%clk 0:01:50]}  Qb7 {[%clk 0:01:44]} 14. Qd1 {[%clk 0:01:46]}  c5 {[%clk 0:01:32]} 15. Bg5 {[%clk 0:01:31]}  Nbd7 {[%clk 0:01:27]} 16. Nh4 {[%clk 0:01:31]}  Bxg2 {[%clk 0:01:16]} 17. Nxg2 {[%clk 0:01:32]}  Qd5 {[%clk 0:01:08]} 18. Be3 {[%clk 0:01:22]}  cxd4 {[%clk 0:01:00]} 19. Qxd4 {[%clk 0:01:17]}  Qxd4 {[%clk 0:00:58]} 20. Bxd4 {[%clk 0:01:18]}  Rfc8 {[%clk 0:00:50]} 21. Rfc1 {[%clk 0:01:13]}  Nc5 {[%clk 0:00:42]} 22. Rc4 {[%clk 0:01:00]}  Nb3 {[%clk 0:00:41]} 23. Rxb4 {[%clk 0:00:15]}  Nxa1 {[%clk 0:00:39]} 24. Bc3 {[%clk 0:00:15]}  a5 {[%clk 0:00:37]} 25. Rb7 {[%clk 0:00:15]}  a4 {[%clk 0:00:37]} 26. Ne3 {[%clk 0:00:14]}  Nb3 {[%clk 0:00:36]} 27. Kg2 {[%clk 0:00:14]}  Nd5 {[%clk 0:00:35]} 28. Nxd5 {[%clk 0:00:14]}  exd5 {[%clk 0:00:36]} 29. Nb5 {[%clk 0:00:14]}  d4 {[%clk 0:00:35]} 30. Nxd4 {[%clk 0:00:14]}  Nxd4 {[%clk 0:00:36]} 31. Bxd4 {[%clk 0:00:15]}  Rc2 {[%clk 0:00:34]} 32. Kf3 {[%clk 0:00:14]}  h6 {[%clk 0:00:33]} 33. h4 {[%clk 0:00:14]}  Rc4 {[%clk 0:00:32]} 34. e3 {[%clk 0:00:14]}  Rcc8 {[%clk 0:00:27]} 35. g4 {[%clk 0:00:14]}  a3 {[%clk 0:00:28]} 36. bxa3 {[%clk 0:00:13]}  Rxa3 {[%clk 0:00:29]} 37. h5 {[%clk 0:00:14]}  Ra6 {[%clk 0:00:29]} 38. Rd7 {[%clk 0:00:13]}  Re6 {[%clk 0:00:29]} 39. Kg3 {[%clk 0:00:13]}  Ra8 {[%clk 0:00:27]} 40. f4 {[%clk 0:00:13]}  Rc6 {[%clk 0:00:25]} 41. g5 {[%clk 0:00:12]}  hxg5 {[%clk 0:00:22]} 42. fxg5 {[%clk 0:00:13]}  Re6 {[%clk 0:00:20]} 43. g6 {[%clk 0:00:12]}  fxg6 {[%clk 0:00:19]} 44. Rxg7+ {[%clk 0:00:11]}  Kf8 {[%clk 0:00:19]} 45. hxg6 {[%clk 0:00:12]}  Raa6 {[%clk 0:00:17]} 46. Rf7+ {[%clk 0:00:11]}  Kg8 {[%clk 0:00:16]} 47. Rg7+ {[%clk 0:00:11]}  Kf8 {[%clk 0:00:16]} 48. Rf7+ {[%clk 0:00:11]}  Ke8 {[%clk 0:00:16]} 49. Rb7 {[%clk 0:00:08]}  Rxg6+ {[%clk 0:00:16]} 50. Kf4 {[%clk 0:00:09]}  Rge6 {[%clk 0:00:15]} 51. Be5 {[%clk 0:00:07]}  Rac6 {[%clk 0:00:10]} 52. Kf5 {[%clk 0:00:04]}  Ra6 {[%clk 0:00:10]} 53. Bd4 {[%clk 0:00:04]}  Re7 {[%clk 0:00:09]} 54. Rb8+ {[%clk 0:00:03]}  Kf7 {[%clk 0:00:09]} 55. Rb5 {[%clk 0:00:04]}  Ree6 {[%clk 0:00:06]} 56. Kf4 {[%clk 0:00:04]}  Re7 {[%clk 0:00:06]} 57. Rf5+ {[%clk 0:00:04]}  Ke8 {[%clk 0:00:06]} 58. Rh5 {[%clk 0:00:04]}  Rf7+ {[%clk 0:00:06]} 59. Ke4 {[%clk 0:00:04]}  Kd7 {[%clk 0:00:06]} 60. Kd3 {[%clk 0:00:05]}  Re6 {[%clk 0:00:07]} 61. Rd5+ {[%clk 0:00:05]}  Rd6 {[%clk 0:00:07]} 62. Ra5 {[%clk 0:00:06]}  Ke6 {[%clk 0:00:06]} 63. Re5+ {[%clk 0:00:07]}  Kd7 {[%clk 0:00:07]} 64. Ra5 {[%clk 0:00:07]}  Ke6 {[%clk 0:00:07]} 65. Ra4 {[%clk 0:00:07]}  Rfd7 {[%clk 0:00:07]} 66. Ke4 {[%clk 0:00:08]}  Ke7 {[%clk 0:00:07]} 67. Ra5 {[%clk 0:00:08]}  Kf7 {[%clk 0:00:07]} 68. Rf5+ {[%clk 0:00:08]}  Ke6 {[%clk 0:00:07]} 69. Rh5 {[%clk 0:00:08]}  Kf7 {[%clk 0:00:07]} 70. Rh7+ {[%clk 0:00:08]}  Kg6 {[%clk 0:00:07]} 71. Rh1 {[%clk 0:00:08]}  Kf7 {[%clk 0:00:07]} 72. Rf1+ {[%clk 0:00:08]}  Kg6 {[%clk 0:00:07]} 73. Rf2 {[%clk 0:00:07]}  Rf7 {[%clk 0:00:02]} 74. Rg2+ {[%clk 0:00:07]}  Kh7 {[%clk 0:00:03]} 75. Rh2+ {[%clk 0:00:07]}  Kg6 {[%clk 0:00:03]} 76. Rh8 {[%clk 0:00:07]}  Re7+ {[%clk 0:00:02]} 77. Kd3 {[%clk 0:00:07]}  Kf7 {[%clk 0:00:03]} 78. Rh7+ {[%clk 0:00:07]}  Ke6 {[%clk 0:00:03]} 79. Rh6+ {[%clk 0:00:07]}  Kd7 {[%clk 0:00:03]} 80. Rh5 {[%clk 0:00:07]}  Rde6 {[%clk 0:00:03]} 81. Ke2 {[%clk 0:00:06]}  Re8 {[%clk 0:00:03]} 82. Kd3 {[%clk 0:00:06]}  Rd6 {[%clk 0:00:04]} 83. Ra5 {[%clk 0:00:06]}  Ke6 {[%clk 0:00:03]} 84. Ra1 {[%clk 0:00:05]}  Kd7 {[%clk 0:00:03]} 85. Kc4 {[%clk 0:00:06]}  Rc6+ {[%clk 0:00:03]} 86. Kd3 {[%clk 0:00:04]}  Rd6 {[%clk 0:00:04]} 87. Rh1 {[%clk 0:00:04]}  Rde6 {[%clk 0:00:04]} 88. Rh7+ {[%clk 0:00:04]}  R8e7 {[%clk 0:00:04]} 89. Rh5 {[%clk 0:00:05]}  Rd6 {[%clk 0:00:04]} 90. e4 {[%clk 0:00:05]}  Kc8 {[%clk 0:00:02]} 91. e5 {[%clk 0:00:05]}  Rde6 {[%clk 0:00:02]} 92. Ke4 {[%clk 0:00:06]}  Kd7 {[%clk 0:00:02]} 93. Rh8 {[%clk 0:00:06]}  Re8 {[%clk 0:00:03]} 94. Rh1 {[%clk 0:00:06]}  R8e7 {[%clk 0:00:03]} 95. Ra1 {[%clk 0:00:07]}  Ke8 {[%clk 0:00:03]} 96. Ra8+ {[%clk 0:00:07]}  Kf7 {[%clk 0:00:03]} 97. Kf5 {[%clk 0:00:07]}  Kg7 {[%clk 0:00:02]} 98. Ra6 {[%clk 0:00:06]}  Rxa6 {[%clk 0:00:02]} 99. e6+ {[%clk 0:00:07]}  Kf8 {[%clk 0:00:02]} 100. Bc5 {[%clk 0:00:04]}  Rxe6 {[%clk 0:00:02]} 101. Kf4 {[%clk 0:00:05]}  Kf7 {[%clk 0:00:02]} 102. Bxe7 {[%clk 0:00:04]}  Rxe7 {[%clk 0:00:03]} 103. Kf5 {[%clk 0:00:05]}  Re6 {[%clk 0:00:04]} 104. Kf4 {[%clk 0:00:05]}  Kf6 {[%clk 0:00:05]} 105. Kg4 {[%clk 0:00:06]}  Re5 {[%clk 0:00:06]} 106. Kf3 {[%clk 0:00:07]}  Ke6 {[%clk 0:00:07]} 107. Kf4 {[%clk 0:00:07]}  Kd5 {[%clk 0:00:07]} 108. Kf3 {[%clk 0:00:08]}  Kd4 {[%clk 0:00:08]} 109. Kf4 {[%clk 0:00:09]}  Re8 {[%clk 0:00:07]} 110. Kf3 {[%clk 0:00:10]}  Rf8+ {[%clk 0:00:07]} 111. Kg4 {[%clk 0:00:10]}  Ke4 {[%clk 0:00:07]} 112. Kg5 {[%clk 0:00:11]}  Rf1 {[%clk 0:00:07]} 113. Kg6 {[%clk 0:00:12]}  Ke5 {[%clk 0:00:07]} 114. Kg7 {[%clk 0:00:12]}  Ke6 {[%clk 0:00:07]} 115. Kg8 {[%clk 0:00:12]}  Ke7 {[%clk 0:00:08]} 116. Kg7 {[%clk 0:00:11]}  Rg1+ {[%clk 0:00:08]} 117. Kh6 {[%clk 0:00:12]}  Kf6 {[%clk 0:00:08]} 118. Kh5 {[%clk 0:00:12]}  Rg5+ {[%clk 0:00:08]} 119. Kh4 {[%clk 0:00:12]}  Rg8 {[%clk 0:00:08]} 120. Kh3 {[%clk 0:00:11]}  Kf5 {[%clk 0:00:08]} 121. Kh4 {[%clk 0:00:10]}  Rg7 {[%clk 0:00:08]} 122. Kh3 {[%clk 0:00:10]}  Kf4 {[%clk 0:00:09]} 123. Kh2 {[%clk 0:00:10]}  Kf3 {[%clk 0:00:09]} 124. Kh1 {[%clk 0:00:08]}  Kf2 {[%clk 0:00:09]} 0-1


[Site "https://www.chess.com"]

[Event "Titled Tuesday Blitz June 13 Late 2023"]
[White "Adury, Anant"]
[Black "Deng, Henry"]
[WhiteFideId "30964687"]
[BlackFideId "30965454"]
[WhiteElo "2363"]
[BlackElo "2550"]
[Result "1-0"]
[Round "8"]
[TimeControl "180+2"]
[Date "2023.06.13"]
[WhiteClock "0:01:40"]
[BlackClock "0:01:40"]
[Board "83"]

1. Nf3 {[%clk 0:03:00]}  d5 {[%clk 0:02:59]} 2. g3 {[%clk 0:03:01]}  Nf6 {[%clk 0:03:00]} 3. Bg2 {[%clk 0:03:02]}  g6 {[%clk 0:02:57]} 4. O-O {[%clk 0:03:03]}  Bg7 {[%clk 0:02:58]} 5. b3 {[%clk 0:03:01]}  O-O {[%clk 0:02:58]} 6. Bb2 {[%clk 0:03:01]}  Nbd7 {[%clk 0:02:55]} 7. c4 {[%clk 0:03:01]}  c6 {[%clk 0:02:53]} 8. Ne5 {[%clk 0:02:59]}  Qc7 {[%clk 0:02:52]} 9. Nxd7 {[%clk 0:02:58]}  Bxd7 {[%clk 0:02:53]} 10. d3 {[%clk 0:02:57]}  e5 {[%clk 0:02:51]} 11. Nd2 {[%clk 0:02:57]}  Rfe8 {[%clk 0:02:50]} 12. Rc1 {[%clk 0:02:57]}  Qd6 {[%clk 0:02:49]} 13. a3 {[%clk 0:02:50]}  a5 {[%clk 0:02:47]} 14. Qc2 {[%clk 0:02:50]}  Rac8 {[%clk 0:02:46]} 15. Qb1 {[%clk 0:02:36]}  b5 {[%clk 0:02:39]} 16. cxb5 {[%clk 0:02:34]}  cxb5 {[%clk 0:02:38]} 17. Rxc8 {[%clk 0:02:35]}  Rxc8 {[%clk 0:02:37]} 18. Rc1 {[%clk 0:02:36]}  Rxc1+ {[%clk 0:02:35]} 19. Qxc1 {[%clk 0:02:36]}  h6 {[%clk 0:02:33]} 20. Nf3 {[%clk 0:02:35]}  Ne8 {[%clk 0:02:31]} 21. d4 {[%clk 0:02:21]}  e4 {[%clk 0:02:28]} 22. Ne5 {[%clk 0:02:21]}  Kh7 {[%clk 0:02:25]} 23. Nxd7 {[%clk 0:02:18]}  Qxd7 {[%clk 0:02:25]} 24. e3 {[%clk 0:02:19]}  Bf8 {[%clk 0:02:22]} 25. Bf1 {[%clk 0:02:18]}  Nc7 {[%clk 0:02:21]} 26. Qd2 {[%clk 0:02:09]}  b4 {[%clk 0:02:20]} 27. a4 {[%clk 0:02:04]}  Ne6 {[%clk 0:02:19]} 28. Bh3 {[%clk 0:01:58]}  Ng5 {[%clk 0:02:15]} 29. Bxd7 {[%clk 0:01:41]}  Nf3+ {[%clk 0:02:14]} 30. Kf1 {[%clk 0:01:42]}  Nxd2+ {[%clk 0:02:15]} 31. Ke2 {[%clk 0:01:43]}  Nxb3 {[%clk 0:02:14]} 32. Kd1 {[%clk 0:01:43]}  f5 {[%clk 0:01:52]} 33. Kc2 {[%clk 0:01:43]}  Nc5 {[%clk 0:01:50]} 34. dxc5 {[%clk 0:01:43]}  Bxc5 {[%clk 0:01:49]} 35. Bd4 {[%clk 0:01:43]}  b3+ {[%clk 0:01:43]} 36. Kxb3 {[%clk 0:01:40]}  Bb4 {[%clk 0:01:40]} 37. Bc3 {[%clk 0:01:40]} 1-0


[Site "https://www.chess.com"]

[Event "Titled Tuesday Blitz June 13 Late 2023"]
[White "Druska, Juraj"]
[Black "DampFalcon"]
[WhiteFideId "14915650"]
[WhiteElo "2415"]
[BlackElo "2226"]
[Result "1-0"]
[Round "8"]
[TimeControl "180+2"]
[Date "2023.06.13"]
[WhiteClock "0:01:28"]
[BlackClock "0:01:45"]
[Board "87"]

1. a3 {[%clk 0:02:59]}  c5 {[%clk 0:02:57]} 2. b4 {[%clk 0:02:59]}  cxb4 {[%clk 0:02:57]} 3. axb4 {[%clk 0:03:00]}  e6 {[%clk 0:02:58]} 4. Bb2 {[%clk 0:02:59]}  Bxb4 {[%clk 0:02:58]} 5. Bxg7 {[%clk 0:02:59]}  Be7 {[%clk 0:02:40]} 6. Bxh8 {[%clk 0:02:58]}  Bf6 {[%clk 0:02:41]} 7. Bxf6 {[%clk 0:02:55]}  Qxf6 {[%clk 0:02:42]} 8. Nc3 {[%clk 0:02:44]}  Ne7 {[%clk 0:02:41]} 9. e3 {[%clk 0:02:43]}  Nbc6 {[%clk 0:02:40]} 10. Qg4 {[%clk 0:02:40]}  d5 {[%clk 0:02:39]} 11. Nf3 {[%clk 0:02:37]}  Bd7 {[%clk 0:02:36]} 12. Qg5 {[%clk 0:02:32]}  Qh8 {[%clk 0:02:31]} 13. Be2 {[%clk 0:02:29]}  O-O-O {[%clk 0:02:30]} 14. O-O {[%clk 0:02:27]}  Rg8 {[%clk 0:02:29]} 15. Qh4 {[%clk 0:02:26]}  Ng6 {[%clk 0:02:28]} 16. Qh6 {[%clk 0:02:14]}  Nge5 {[%clk 0:02:24]} 17. Nxe5 {[%clk 0:02:11]}  Qxe5 {[%clk 0:02:22]} 18. g3 {[%clk 0:02:02]}  d4 {[%clk 0:02:18]} 19. Nb5 {[%clk 0:01:56]}  a6 {[%clk 0:02:13]} 20. Na3 {[%clk 0:01:42]}  dxe3 {[%clk 0:02:02]} 21. Qxe3 {[%clk 0:01:39]}  Qg7 {[%clk 0:01:54]} 22. Nc4 {[%clk 0:01:37]}  h5 {[%clk 0:01:49]} 23. Nb6+ {[%clk 0:01:36]}  Kc7 {[%clk 0:01:49]} 24. Nxd7 {[%clk 0:01:35]}  Kxd7 {[%clk 0:01:49]} 25. Rfb1 {[%clk 0:01:35]}  Kc8 {[%clk 0:01:48]} 26. Qb6 {[%clk 0:01:31]}  f5 {[%clk 0:01:45]} 27. Bxa6 {[%clk 0:01:28]} 1-0


[Site "https://www.chess.com"]

[Event "Titled Tuesday Blitz June 13 Late 2023"]
[White "Hajiyev, Kanan"]
[Black "Carrasco Miranda, Andres"]
[WhiteFideId "13404148"]
[BlackFideId "3405990"]
[WhiteElo "2115"]
[BlackElo "2183"]
[Result "1-0"]
[Round "8"]
[TimeControl "180+2"]
[Date "2023.06.13"]
[WhiteClock "0:01:54"]
[BlackClock "0:02:00"]
[Board "91"]

1. d4 {[%clk 0:02:57]}  Nf6 {[%clk 0:02:58]} 2. Nf3 {[%clk 0:02:58]}  g6 {[%clk 0:02:58]} 3. c4 {[%clk 0:02:59]}  Bg7 {[%clk 0:02:57]} 4. g3 {[%clk 0:03:00]}  O-O {[%clk 0:02:57]} 5. Bg2 {[%clk 0:03:01]}  d6 {[%clk 0:02:57]} 6. O-O {[%clk 0:03:01]}  Nc6 {[%clk 0:02:58]} 7. b3 {[%clk 0:03:02]}  Bf5 {[%clk 0:02:58]} 8. Bb2 {[%clk 0:03:02]}  Qd7 {[%clk 0:02:55]} 9. d5 {[%clk 0:03:01]}  Na5 {[%clk 0:02:53]} 10. Bc3 {[%clk 0:02:55]}  b6 {[%clk 0:02:51]} 11. Nbd2 {[%clk 0:02:43]}  Bh3 {[%clk 0:02:50]} 12. e4 {[%clk 0:02:41]}  Bxg2 {[%clk 0:02:45]} 13. Kxg2 {[%clk 0:02:41]}  c5 {[%clk 0:02:45]} 14. Rc1 {[%clk 0:02:28]}  Nh5 {[%clk 0:02:27]} 15. Qe2 {[%clk 0:02:13]}  Qg4 {[%clk 0:02:09]} 16. Qe3 {[%clk 0:01:57]}  Bh6 {[%clk 0:02:00]} 17. Qxh6 {[%clk 0:01:54]} 1-0


[Site "https://www.chess.com"]

[Event "Titled Tuesday Blitz June 13 Late 2023"]
[White "Petesch, Gabriel"]
[Black "Melikhov, Evgeny V."]
[WhiteFideId "2032465"]
[BlackFideId "4122046"]
[WhiteElo "2374"]
[BlackElo "2158"]
[Result "1-0"]
[Round "8"]
[TimeControl "180+2"]
[Date "2023.06.13"]
[WhiteClock "0:00:13"]
[BlackClock "0:00:00"]
[Board "96"]

1. Nf3 {[%clk 0:03:00]}  f5 {[%clk 0:02:59]} 2. d3 {[%clk 0:02:59]}  d6 {[%clk 0:02:58]} 3. e4 {[%clk 0:02:59]}  e5 {[%clk 0:02:58]} 4. Nc3 {[%clk 0:02:57]}  c5 {[%clk 0:02:58]} 5. g3 {[%clk 0:02:51]}  fxe4 {[%clk 0:02:49]} 6. dxe4 {[%clk 0:02:50]}  Be6 {[%clk 0:02:48]} 7. Bg2 {[%clk 0:02:49]}  Nc6 {[%clk 0:02:47]} 8. Ng5 {[%clk 0:02:48]}  Qd7 {[%clk 0:02:40]} 9. Nd5 {[%clk 0:02:41]}  O-O-O {[%clk 0:02:32]} 10. Nxe6 {[%clk 0:02:37]}  Qxe6 {[%clk 0:02:32]} 11. c3 {[%clk 0:02:36]}  Nf6 {[%clk 0:02:29]} 12. b4 {[%clk 0:02:36]}  Kb8 {[%clk 0:02:19]} 13. Rb1 {[%clk 0:02:35]}  cxb4 {[%clk 0:02:12]} 14. Qa4 {[%clk 0:02:29]}  Nxd5 {[%clk 0:01:49]} 15. exd5 {[%clk 0:02:13]}  Qf5 {[%clk 0:01:49]} 16. dxc6 {[%clk 0:02:09]}  Qxb1 {[%clk 0:01:48]} 17. c7+ {[%clk 0:00:45]}  Kxc7 {[%clk 0:01:46]} 18. Qa5+ {[%clk 0:00:44]}  Kd7 {[%clk 0:01:31]} 19. Bh3+ {[%clk 0:00:44]}  Ke8 {[%clk 0:01:30]} 20. Qb5+ {[%clk 0:00:37]}  Kf7 {[%clk 0:01:22]} 21. Qd5+ {[%clk 0:00:37]}  Ke8 {[%clk 0:01:14]} 22. Qb5+ {[%clk 0:00:36]}  Kf7 {[%clk 0:01:14]} 23. O-O {[%clk 0:00:26]}  Qe4 {[%clk 0:01:07]} 24. Bg2 {[%clk 0:00:15]}  Qf5 {[%clk 0:00:00]} 25. f4 {[%clk 0:00:13]} 1-0


[Site "https://www.chess.com"]

[Event "Titled Tuesday Blitz June 13 Late 2023"]
[White "Osmak, Yuliia"]
[Black "Hoffmann, Asa"]
[WhiteFideId "14101602"]
[BlackFideId "2001470"]
[WhiteElo "2303"]
[BlackElo "2117"]
[Result "1-0"]
[Round "8"]
[TimeControl "180+2"]
[Date "2023.06.13"]
[WhiteClock "0:00:20"]
[BlackClock "0:00:43"]
[Board "97"]

1. b3 {[%clk 0:03:00]}  d6 {[%clk 0:02:59]} 2. Bb2 {[%clk 0:03:00]}  e5 {[%clk 0:02:59]} 3. e3 {[%clk 0:02:59]}  f5 {[%clk 0:02:58]} 4. Nf3 {[%clk 0:02:58]}  Nf6 {[%clk 0:02:58]} 5. d4 {[%clk 0:02:57]}  e4 {[%clk 0:02:57]} 6. Nfd2 {[%clk 0:02:57]}  d5 {[%clk 0:02:57]} 7. c4 {[%clk 0:02:57]}  c6 {[%clk 0:02:57]} 8. Nc3 {[%clk 0:02:56]}  Bd6 {[%clk 0:02:56]} 9. Be2 {[%clk 0:02:53]}  f4 {[%clk 0:02:54]} 10. Qc2 {[%clk 0:02:46]}  O-O {[%clk 0:02:53]} 11. O-O-O {[%clk 0:02:44]}  Bf5 {[%clk 0:02:47]} 12. c5 {[%clk 0:02:30]}  Bc7 {[%clk 0:02:46]} 13. b4 {[%clk 0:02:30]}  Bg6 {[%clk 0:02:44]} 14. b5 {[%clk 0:02:15]}  Nbd7 {[%clk 0:02:42]} 15. Nb3 {[%clk 0:02:10]}  a6 {[%clk 0:02:37]} 16. b6 {[%clk 0:02:08]}  Bb8 {[%clk 0:02:37]} 17. Na5 {[%clk 0:02:07]}  Qc8 {[%clk 0:02:33]} 18. g3 {[%clk 0:02:02]}  f3 {[%clk 0:02:29]} 19. Bf1 {[%clk 0:02:02]}  Ng4 {[%clk 0:02:22]} 20. h3 {[%clk 0:01:58]}  Nh6 {[%clk 0:02:18]} 21. a4 {[%clk 0:01:48]}  Nf6 {[%clk 0:01:52]} 22. Na2 {[%clk 0:01:45]}  Nf5 {[%clk 0:01:45]} 23. Rg1 {[%clk 0:01:31]}  Bxg3 {[%clk 0:01:38]} 24. Rxg3 {[%clk 0:01:30]}  Nxg3 {[%clk 0:01:38]} 25. fxg3 {[%clk 0:01:31]}  Nh5 {[%clk 0:01:36]} 26. Qf2 {[%clk 0:01:28]}  Qb8 {[%clk 0:01:33]} 27. g4 {[%clk 0:01:27]}  Qg3 {[%clk 0:01:29]} 28. Rd2 {[%clk 0:01:23]}  Qxf2 {[%clk 0:01:27]} 29. Rxf2 {[%clk 0:01:23]}  Ng3 {[%clk 0:01:24]} 30. Nxb7 {[%clk 0:01:23]}  h5 {[%clk 0:01:21]} 31. Nb4 {[%clk 0:01:18]}  Rf6 {[%clk 0:01:18]} 32. Nd6 {[%clk 0:01:08]}  hxg4 {[%clk 0:01:14]} 33. hxg4 {[%clk 0:01:07]}  Nh1 {[%clk 0:01:11]} 34. Rh2 {[%clk 0:01:00]}  Ng3 {[%clk 0:01:10]} 35. Bxa6 {[%clk 0:00:51]}  f2 {[%clk 0:01:09]} 36. Rxf2 {[%clk 0:00:41]}  Rxf2 {[%clk 0:01:08]} 37. b7 {[%clk 0:00:42]}  Rff8 {[%clk 0:01:01]} 38. bxa8=Q {[%clk 0:00:39]}  Rxa8 {[%clk 0:01:00]} 39. Kc2 {[%clk 0:00:26]}  Nf1 {[%clk 0:00:57]} 40. Bxf1 {[%clk 0:00:25]}  Be8 {[%clk 0:00:55]} 41. Nxe8 {[%clk 0:00:21]}  Rxe8 {[%clk 0:00:54]} 42. Nxc6 {[%clk 0:00:21]}  Ra8 {[%clk 0:00:53]} 43. Bb5 {[%clk 0:00:20]}  Kf7 {[%clk 0:00:52]} 44. Ne5+ {[%clk 0:00:20]}  Kf6 {[%clk 0:00:52]} 45. c6 {[%clk 0:00:20]}  Ke7 {[%clk 0:00:51]} 46. Ba3+ {[%clk 0:00:20]}  Kd8 {[%clk 0:00:51]} 47. Bd6 {[%clk 0:00:20]}  Kc8 {[%clk 0:00:51]} 48. c7 {[%clk 0:00:20]}  Ra7 {[%clk 0:00:51]} 49. Bd7+ {[%clk 0:00:19]}  Kb7 {[%clk 0:00:43]} 50. c8=Q+ {[%clk 0:00:20]} 1-0


[Site "https://www.chess.com"]